fUSD/lending_fUSD_20250504
["ID","MTS","AMOUNT","RATE_DAILY","PERIOD"]
[359835511,1746363052127,-450.0,0.00019753,2]
[359835513,1746363052136,-450.0,0.00019753,2]
[359835515,1746363052146,-167.47,0.00019753,2]
[359835517,1746363052155,-490.0,0.00019753,2]
[359835518,1746363052164,-470.0,0.00019753,2]
[359835520,1746363052174,-958.61,0.00019753,2]
[359835522,1746363052184,-450.0,0.00019753,2]
[359835524,1746363052196,-490.0,0.00019753,2]
[359835526,1746363052205,-511.98939701,0.00019753,2]
[359835528,1746363052215,-490.0,0.00019753,2]
[359835529,1746363052224,-179.3207823,0.00019753,2]
[359835531,1746363052233,-296.25656827,0.00019753,2]
[359835533,1746363052246,-490.0,0.00019753,2]
[359835535,1746363052256,-490.0,0.00019753,2]
[359835537,1746363052265,-541.39,0.00019753,2]
[359835539,1746363052274,-730.79,0.00019753,2]
[359835540,1746363052285,-450.0,0.00019753,2]
[359835542,1746363052295,-450.0,0.00019753,2]
[359835544,1746363052305,-450.0,0.00019753,2]
[359835546,1746363052317,-490.0,0.00019753,2]
[359835548,1746363052326,-490.0,0.00019753,2]
[359835549,1746363052336,-450.0,0.00019753,2]
[359835551,1746363052345,-470.0,0.00019753,2]
[359835553,1746363052354,-490.0,0.00019753,2]
[359835555,1746363052363,-154.39,0.00019753,2]
[359835557,1746363052372,-450.0,0.00019753,2]
[359835558,1746363052387,-470.0,0.00019753,2]
[359835560,1746363052397,-490.0,0.00019753,2]
[359835562,1746363052407,-470.0,0.00019753,2]
[359835564,1746363052416,-470.0,0.00019753,2]
[359835566,1746363052425,-450.0,0.00019753,2]
[359835568,1746363052435,-450.0,0.00019753,2]
[359835569,1746363052445,-490.0,0.00019753,2]
[359835571,1746363052455,-543.92,0.00019753,2]
[359835573,1746363052465,-470.0,0.00019753,2]
[359835575,1746363052474,-450.0,0.00019753,2]
[359835576,1746363052484,-450.0,0.00019753,2]
[359835578,1746363052493,-592.02138524,0.00019753,2]
[359835580,1746363052502,-450.0,0.00019753,2]
[359835582,1746363052511,-450.0,0.00019753,2]
[359835583,1746363052520,-863.45,0.00019753,2]
[359835585,1746363052530,-470.0,0.00019753,2]
[359835587,1746363052540,-450.0,0.00019753,2]
[359835589,1746363052549,-450.0,0.00019753,2]
[359835591,1746363052558,-450.0,0.00019753,2]
[359835592,1746363052568,-450.0,0.00019753,2]
[359835594,1746363052578,-450.0,0.00019753,2]
[359835596,1746363052587,-490.0,0.00019753,2]
[359835598,1746363052596,-450.0,0.00019753,2]
[359835600,1746363052605,-450.0,0.00019753,2]
[359835602,1746363052615,-490.0,0.00019753,2]
[359835603,1746363052624,-16729.23,0.00019753,2]
[359835604,1746363052633,-450.0,0.00019753,2]
[359835605,1746363052643,-464.3,0.00019753,2]
[359835606,1746363052652,-450.0,0.00019753,2]
[359835607,1746363052661,-490.0,0.00019753,2]
[359835608,1746363052670,-450.0,0.00019753,2]
[359835609,1746363052679,-580.34,0.00019753,2]
[359835610,1746363052688,-159.17814423,0.00019753,2]
[359835611,1746363052697,-470.0,0.00019753,2]
[359835612,1746363052707,-450.0,0.00019753,2]
[359835613,1746363052716,-490.0,0.00019753,2]
[359835614,1746363052725,-450.0,0.00019753,2]
[359835615,1746363052734,-450.0,0.00019753,2]
[359835616,1746363052743,-490.0,0.00019753,2]
[359835617,1746363052753,-450.0,0.00019753,2]
[359835619,1746363052763,-984.73,0.00019753,2]
[359835620,1746363052772,-472.76,0.00019753,2]
[359835621,1746363052780,-342.79,0.00019753,2]
[359835623,1746363052789,-470.0,0.00019753,2]
[359835625,1746363052798,-490.0,0.00019753,2]
[359835627,1746363052807,-450.0,0.00019753,2]
[359835629,1746363052816,-450.0,0.00019753,2]
[359835631,1746363052825,-470.0,0.00019753,2]
[359835633,1746363052834,-450.0,0.00019753,2]
[359835635,1746363052844,-3285.75,0.00019753,2]
[359835637,1746363052854,-490.0,0.00019753,2]
[359835639,1746363052863,-450.0,0.00019753,2]
[359835641,1746363052872,-470.0,0.00019753,2]
[359835643,1746363052881,-450.0,0.00019753,2]
[359835645,1746363052891,-450.0,0.00019753,2]
[359835647,1746363052900,-470.0,0.00019753,2]
[359835649,1746363052909,-450.0,0.00019753,2]
[359835651,1746363052918,-447.18430552,0.00019753,2]
[359835653,1746363052927,-450.0,0.00019753,2]
[359835655,1746363052937,-470.0,0.00019753,2]
[359835657,1746363052946,-490.0,0.00019753,2]
[359835659,1746363052956,-450.0,0.00019753,2]
[359835661,1746363052966,-2864.44,0.00019753,2]
[359835663,1746363052975,-450.0,0.00019753,2]
[359835665,1746363052984,-202.69,0.00019753,2]
[359835667,1746363052993,-1599.23,0.00019753,2]
[359835669,1746363053002,-490.0,0.00019753,2]
[359835671,1746363053012,-591.83,0.00019753,2]
[359835673,1746363053020,-564.18,0.00019753,2]
[359835675,1746363053030,-470.0,0.00019753,2]
[359835677,1746363053039,-508.15,0.00019753,2]
[359835679,1746363053049,-490.0,0.00019753,2]
[359835681,1746363053059,-590.56,0.00019753,2]
[359835683,1746363053068,-450.0,0.00019753,2]
[359835685,1746363053077,-490.0,0.00019753,2]
[359835687,1746363053087,-470.0,0.00019753,2]
[359835689,1746363053096,-465.32,0.00019753,2]
[359835691,1746363053105,-450.0,0.00019753,2]
[359835693,1746363053114,-450.0,0.00019753,2]
[359835695,1746363053123,-450.0,0.00019753,2]
[359835697,1746363053132,-582.93,0.00019753,2]
[359835699,1746363053141,-470.0,0.00019753,2]
[359835701,1746363053151,-470.0,0.00019753,2]
[359835702,1746363053160,-470.0,0.00019753,2]
[359835705,1746363053169,-1263.17,0.00019753,2]
[359835707,1746363053179,-490.0,0.00019753,2]
[359835709,1746363053189,-450.0,0.00019753,2]
[359835711,1746363053198,-224.93,0.00019753,2]
[359835712,1746363053207,-450.0,0.00019753,2]
[359835715,1746363053217,-19235.25386954,0.00019753,2]
[359835753,1746363053573,-470.0,0.00019726,2]
[359835755,1746363053583,-4830.05613046,0.00019753,2]
[359835757,1746363053592,-582.15,0.00019753,2]
[359835759,1746363053601,-470.0,0.00019753,2]
[359835761,1746363053610,-262.93,0.00019753,2]
[359835763,1746363053619,-470.0,0.00019753,2]
[359835765,1746363053628,-176.05,0.00019753,2]
[359835767,1746363053637,-450.0,0.00019753,2]
[359835769,1746363053648,-1195.73,0.00019753,2]
[359835771,1746363053657,-470.0,0.00019753,2]
[359835773,1746363053667,-450.0,0.00019753,2]
[359835775,1746363053676,-470.0,0.00019753,2]
[359835777,1746363053684,-568.36,0.00019753,2]
[359835779,1746363053694,-470.0,0.00019753,2]
[359835781,1746363053704,-450.0,0.00019753,2]
[359835783,1746363053713,-450.0,0.00019753,2]
[359835785,1746363053723,-534.0,0.00019753,2]
[359835787,1746363053732,-450.0,0.00019753,2]
[359835789,1746363053741,-523.9,0.00019753,2]
[359835791,1746363053750,-450.0,0.00019753,2]
[359835793,1746363053760,-450.0,0.00019753,2]
[359835794,1746363053769,-450.0,0.00019753,2]
[359835796,1746363053779,-450.0,0.00019753,2]
[359835798,1746363053788,-446.89,0.00019753,2]
[359835800,1746363053798,-450.0,0.00019753,2]
[359835802,1746363053807,-450.0,0.00019753,2]
[359835804,1746363053817,-185.77697924,0.00019753,2]
[359835820,1746363053956,-264.22302076,0.00019753,2]
[359835822,1746363053965,-371.04,0.00019753,2]
[359835824,1746363053974,-142.85353431,0.00019753,2]
[359835835,1746363054219,-1008.8146,0.00019626,2]
[359835836,1746363054228,-331.2218849,0.00019726,2]
[359835837,1746363054239,-450.0,0.00019726,2]
[359835839,1746363054249,-327.14646569,0.00019753,2]
[359835841,1746363054259,-470.0,0.00019753,2]
[359835843,1746363054270,-450.0,0.00019753,2]
[359835845,1746363054279,-490.0,0.00019753,2]
[359835847,1746363054289,-450.0,0.00019753,2]
[359835849,1746363054298,-452.45,0.00019753,2]
[359835851,1746363054307,-1803.1,0.00019753,2]
[359835853,1746363054317,-450.0,0.00019753,2]
[359835855,1746363054327,-470.0,0.00019753,2]
[359835857,1746363054336,-625.75,0.00019753,2]
[359835859,1746363054345,-450.0,0.00019753,2]
[359835861,1746363054354,-450.0,0.00019753,2]
[359835862,1746363054363,-450.0,0.00019753,2]
[359835864,1746363054372,-557.08252322,0.00019773,2]
[359835866,1746363054381,-164.18743977,0.00019773,2]
[359835868,1746363054390,-523.45807803,0.00019773,2]
[359835870,1746363054400,-500.0,0.00019773,2]
[359835872,1746363054410,-500.0,0.00019773,2]
[359835874,1746363054419,-500.0,0.00019773,2]
[359835876,1746363054428,-500.0,0.00019773,2]
[359835878,1746363054437,-500.0,0.00019773,2]
[359835880,1746363054446,-372.71439279,0.00019778,2]
[359835882,1746363054456,-3693.93050204,0.00019778,2]
[359835884,1746363054465,-167.33147416,0.0001978,2]
[359835886,1746363054474,-490.0,0.0001978,2]
[359835888,1746363054483,-1000.441301,0.0001978,2]
[359835890,1746363054492,-1820.062069,0.0001978,2]
[359835892,1746363054501,-1148.39117,0.0001978,2]
[359835894,1746363054511,-559.56,0.0001978,2]
[359835896,1746363054520,-450.0,0.0001978,2]
[359835898,1746363054529,-201.2,0.0001978,2]
[359835900,1746363054539,-450.0,0.0001978,2]
[359835902,1746363054548,-450.0,0.0001978,2]
[359835904,1746363054558,-301.2,0.0001978,2]
[359835906,1746363054568,-450.0,0.0001978,2]
[359835908,1746363054577,-450.0,0.0001978,2]
[359835910,1746363054586,-450.0,0.0001978,2]
[359835912,1746363054596,-450.0,0.0001978,2]
[359835914,1746363054606,-474.84,0.0001978,2]
[359835916,1746363054616,-450.0,0.0001978,2]
[359835918,1746363054626,-450.0,0.0001978,2]
[359835920,1746363054636,-192.81,0.0001978,2]
[359835922,1746363054646,-150.0,0.0001978,2]
[359835924,1746363054655,-162.92,0.0001978,2]
[359835926,1746363054666,-450.0,0.0001978,2]
[359835928,1746363054676,-450.0,0.0001978,2]
[359835931,1746363054686,-450.0,0.0001978,2]
[359835933,1746363054695,-561.52,0.0001978,2]
[359835935,1746363054705,-213.62,0.0001978,2]
[359835937,1746363054715,-250.48,0.0001978,2]
[359835938,1746363054724,-450.0,0.0001978,2]
[359835940,1746363054734,-286.84,0.0001978,2]
[359835942,1746363054745,-328.99,0.0001978,2]
[359835945,1746363054755,-450.0,0.0001978,2]
[359835946,1746363054764,-450.0,0.0001978,2]
[359835948,1746363054774,-332.05,0.0001978,2]
[359835950,1746363054783,-451.96,0.0001978,2]
[359835953,1746363054793,-352.05,0.0001978,2]
[359835954,1746363054802,-450.0,0.0001978,2]
[359835956,1746363054812,-450.0,0.0001978,2]
[359835958,1746363054822,-571.73,0.0001978,2]
[359835960,1746363054830,-490.0,0.0001978,2]
[359835963,1746363054840,-300.0,0.0001978,2]
[359835965,1746363054850,-472.74,0.0001978,2]
[359835967,1746363054860,-450.0,0.0001978,2]
[359835968,1746363054869,-425.69,0.0001978,2]
[359835970,1746363054879,-259.42,0.0001978,2]
[359835972,1746363054888,-450.0,0.0001978,2]
[359835974,1746363054897,-450.0,0.0001978,2]
[359835976,1746363054907,-200.23,0.0001978,2]
[359835978,1746363054917,-450.0,0.0001978,2]
[359835980,1746363054926,-396.11,0.0001978,2]
[359835983,1746363054936,-450.0,0.0001978,2]
[359835984,1746363054946,-450.0,0.0001978,2]
[359835987,1746363054955,-218.29,0.0001978,2]
[359835989,1746363054966,-490.0,0.0001978,2]
[359835990,1746363054975,-356.25,0.0001978,2]
[359835992,1746363054984,-450.0,0.0001978,2]
[359835994,1746363054994,-239.22,0.0001978,2]
[359835995,1746363055005,-548.83,0.0001978,2]
[359835996,1746363055015,-470.0,0.0001978,2]
[359835997,1746363055024,-470.0,0.0001978,2]
[359835998,1746363055034,-450.0,0.0001978,2]
[359835999,1746363055044,-490.0,0.0001978,2]
[359836000,1746363055054,-450.0,0.0001978,2]
[359836001,1746363055064,-490.0,0.0001978,2]
[359836002,1746363055075,-250.0,0.0001978,2]
[359836003,1746363055084,-490.0,0.0001978,2]
[359836004,1746363055094,-508.53,0.0001978,2]
[359836006,1746363055103,-490.0,0.0001978,2]
[359836008,1746363055113,-450.0,0.0001978,2]
[359836010,1746363055123,-490.0,0.0001978,2]
[359836012,1746363055132,-435.84926723,0.0001978,2]
[359836014,1746363055146,-54.15073277,0.0001978,2]
[359836016,1746363055155,-490.0,0.0001978,2]
[359836018,1746363055164,-450.0,0.0001978,2]
[359836020,1746363055174,-168.09925723,0.0001978,2]
[359836026,1746363055224,-321.90074277,0.0001978,2]
[359836028,1746363055234,-450.0,0.0001978,2]
[359836030,1746363055247,-450.0,0.0001978,2]
[359836033,1746363055257,-279.72181163,0.0001978,2]
[359836035,1746363055267,-177.85467075,0.0001978,2]
[359836037,1746363055277,-305.96,0.0001978,2]
[359836039,1746363055287,-490.0,0.0001978,2]
[359836040,1746363055297,-241.72589945,0.0001978,2]
[359836043,1746363055309,-208.27410055,0.0001978,2]
[359836045,1746363055319,-450.0,0.0001978,2]
[359836047,1746363055329,-80.03435859,0.0001978,2]
[359836049,1746363055341,-369.96564141,0.0001978,2]
[359836051,1746363055351,-500.87,0.0001978,2]
[359836053,1746363055361,-490.0,0.0001978,2]
[359836055,1746363055371,-1256.37,0.0001978,2]
[359836057,1746363055381,-450.0,0.0001978,2]
[359836059,1746363055390,-490.0,0.0001978,2]
[359836061,1746363055401,-255.0,0.0001978,2]
[359836063,1746363055410,-490.0,0.0001978,2]
[359836065,1746363055420,-367.35,0.0001978,2]
[359836068,1746363055429,-958.61,0.0001978,2]
[359836069,1746363055439,-719.32401433,0.0001978,2]
[359836071,1746363055453,-11.46598567,0.0001978,2]
[359836073,1746363055462,-450.0,0.0001978,2]
[359836074,1746363055472,-450.0,0.0001978,2]
[359836075,1746363055482,-542.22,0.0001978,2]
[359836076,1746363055491,-450.0,0.0001978,2]
[359836077,1746363055502,-450.0,0.0001978,2]
[359836078,1746363055512,-394.77,0.0001978,2]
[359836079,1746363055521,-219.59,0.0001978,2]
[359836080,1746363055531,-450.0,0.0001978,2]
[359836081,1746363055541,-86.63582186,0.0001978,2]
[359836082,1746363055553,-363.36417814,0.0001978,2]
[359836083,1746363055562,-450.0,0.0001978,2]
[359836084,1746363055572,-490.0,0.0001978,2]
[359836085,1746363055581,-863.45,0.0001978,2]
[359836086,1746363055591,-450.0,0.0001978,2]
[359836087,1746363055600,-291.83,0.0001978,2]
[359836088,1746363055609,-450.0,0.0001978,2]
[359836089,1746363055619,-258.23,0.0001978,2]
[359836090,1746363055628,-450.0,0.0001978,2]
[359836091,1746363055638,-364.68,0.0001978,2]
[359836092,1746363055648,-450.0,0.0001978,2]
[359836093,1746363055657,-264.13,0.0001978,2]
[359836094,1746363055667,-694.13653456,0.0001978,2]
[359836096,1746363055682,-1096.76310143,0.0001978,2]
[359836098,1746363055694,-3261.54770285,0.0001978,2]
[359836100,1746363055709,-10472.13287512,0.0001978,2]
[359836453,1746363141216,307.73,0.00018862,2]
[359836455,1746363234625,1260.17,0.00016934,2]
[359836456,1746363234829,845.63950379,0.00019198,2]
[359836457,1746363234850,414.53049621,0.00019198,2]
[359836458,1746363283878,516.9762878,0.0003,30]
[359836461,1746363305343,1305.44,0.00019,2]
[359836468,1746363517715,200.0,0.00018762,2]
[359836478,1746363577686,500.0,0.00027397,30]
[359836479,1746363578292,500.0,0.00027945,35]
[359836480,1746363578543,530.0196171,0.00028493,40]
[359836481,1746363586666,-206.28198214,0.00019553,2]
[359836482,1746363593432,8080.02950379,0.00018772,2]
[359836483,1746363593457,10000.0,0.00018772,2]
[359836484,1746363593478,5819.97049621,0.00018772,2]
[359836488,1746363678375,561.0,0.000301,120]
[359836489,1746363743272,1000.0,0.00018784,2]
[359836490,1746363748609,160.0,0.0003,32]
[359836491,1746363749253,250.0,0.00017,2]
[359836492,1746363750337,300.0,0.00019,2]
[359836536,1746364039083,160.0,0.0003,32]
[359836545,1746364147246,1546.11,0.00018743,2]
[359836549,1746364231718,-206.28198214,0.00019552,2]
[359836550,1746364231728,-250.0,0.00019575,2]
[359836551,1746364231738,-617.2069,0.00019626,2]
[359836552,1746364231749,-300.0,0.00019652,2]
[359836553,1746364231758,-1200.0,0.00019652,2]
[359836554,1746364231767,-300.0,0.00019652,2]
[359836555,1746364231777,-615.33786637,0.00019653,2]
[359836556,1746364231827,-105.83413607,0.00019653,2]
[359836557,1746364231837,-4270.77643333,0.00019653,2]
[359836558,1746364231847,-160.62286689,0.00019653,2]
[359836559,1746364231857,-207.4,0.00019667,2]
[359836560,1746364231867,-182.77584803,0.0001968,2]
[359836561,1746364231877,-4270.77643326,0.0001968,2]
[359836562,1746364231887,-4270.77643326,0.00019708,2]
[359836563,1746364231896,-169.1458,0.00019709,2]
[359836564,1746364231906,-1000.0,0.00019709,2]
[359836565,1746364231916,-151.0,0.00019714,2]
[359836566,1746364231926,-165.36177939,0.00019714,2]
[359836567,1746364231936,-668.65185757,0.00019714,2]
[359836568,1746364231946,-207.4,0.00019716,2]
[359836569,1746364231955,-207.4,0.00019716,2]
[359836570,1746364231965,-200.0,0.00019717,2]
[359836571,1746364231974,-671.954657,0.00019726,2]
[359836572,1746364231984,-450.0,0.00019726,2]
[359836573,1746364231993,-450.0,0.00019726,2]
[359836574,1746364232002,-450.0,0.00019726,2]
[359836575,1746364232012,-450.0,0.00019726,2]
[359836576,1746364232021,-450.0,0.00019726,2]
[359836577,1746364232031,-450.0,0.00019726,2]
[359836578,1746364232040,-450.0,0.00019726,2]
[359836579,1746364232050,-541.81,0.00019726,2]
[359836580,1746364232060,-332.78969886,0.00019726,2]
[359836581,1746364232069,-450.0,0.00019726,2]
[359836582,1746364232079,-194.01,0.00019726,2]
[359836583,1746364232088,-450.0,0.00019726,2]
[359836584,1746364232098,-450.0,0.00019726,2]
[359836586,1746364232108,-450.0,0.00019726,2]
[359836588,1746364232117,-450.0,0.00019726,2]
[359836590,1746364232127,-450.0,0.00019726,2]
[359836592,1746364232136,-450.0,0.00019726,2]
[359836594,1746364232146,-450.0,0.00019726,2]
[359836596,1746364232156,-450.0,0.00019726,2]
[359836598,1746364232166,-450.0,0.00019726,2]
[359836600,1746364232175,-450.0,0.00019726,2]
[359836602,1746364232184,-450.0,0.00019726,2]
[359836603,1746364232193,-450.0,0.00019726,2]
[359836604,1746364232203,-450.0,0.00019726,2]
[359836605,1746364232212,-450.0,0.00019726,2]
[359836606,1746364232221,-450.0,0.00019726,2]
[359836607,1746364232230,-450.0,0.00019726,2]
[359836608,1746364232240,-450.0,0.00019726,2]
[359836609,1746364232250,-450.0,0.00019726,2]
[359836610,1746364232260,-450.0,0.00019726,2]
[359836611,1746364232269,-450.0,0.00019726,2]
[359836612,1746364232278,-450.0,0.00019726,2]
[359836613,1746364232287,-450.0,0.00019726,2]
[359836614,1746364232296,-450.0,0.00019726,2]
[359836615,1746364232306,-450.0,0.00019726,2]
[359836616,1746364232315,-450.0,0.00019726,2]
[359836617,1746364232324,-450.0,0.00019726,2]
[359836618,1746364232334,-450.0,0.00019726,2]
[359836619,1746364232344,-450.0,0.00019726,2]
[359836620,1746364232353,-450.0,0.00019726,2]
[359836621,1746364232362,-450.0,0.00019726,2]
[359836622,1746364232371,-250.0,0.00019726,2]
[359836623,1746364232381,-450.0,0.00019726,2]
[359836624,1746364232390,-450.0,0.00019726,2]
[359836625,1746364232399,-450.0,0.00019726,2]
[359836626,1746364232408,-450.0,0.00019726,2]
[359836627,1746364232418,-450.0,0.00019726,2]
[359836628,1746364232427,-450.0,0.00019726,2]
[359836629,1746364232436,-450.0,0.00019726,2]
[359836630,1746364232446,-450.0,0.00019726,2]
[359836631,1746364232456,-450.0,0.00019726,2]
[359836632,1746364232465,-450.0,0.00019726,2]
[359836633,1746364232475,-450.0,0.00019726,2]
[359836634,1746364232484,-480.17,0.00019726,2]
[359836635,1746364232494,-450.0,0.00019726,2]
[359836636,1746364232504,-450.0,0.00019726,2]
[359836637,1746364232514,-450.0,0.00019726,2]
[359836638,1746364232523,-450.0,0.00019726,2]
[359836639,1746364232533,-450.0,0.00019726,2]
[359836640,1746364232542,-450.0,0.00019726,2]
[359836641,1746364232551,-450.0,0.00019726,2]
[359836642,1746364232561,-450.0,0.00019726,2]
[359836643,1746364232570,-450.0,0.00019726,2]
[359836644,1746364232579,-371.80134439,0.00019726,2]
[359836645,1746364232589,-587.84,0.00019726,2]
[359836646,1746364232598,-450.0,0.00019726,2]
[359836647,1746364232607,-450.0,0.00019726,2]
[359836648,1746364232616,-450.0,0.00019726,2]
[359836649,1746364232626,-502.05,0.00019726,2]
[359836650,1746364232635,-450.0,0.00019726,2]
[359836651,1746364232644,-490.0,0.00019726,2]
[359836652,1746364232653,-450.0,0.00019726,2]
[359836653,1746364232662,-490.0,0.00019726,2]
[359836654,1746364232671,-450.0,0.00019726,2]
[359836655,1746364232680,-450.0,0.00019726,2]
[359836656,1746364232690,-450.0,0.00019726,2]
[359836657,1746364232700,-450.0,0.00019726,2]
[359836658,1746364232714,-450.0,0.00019726,2]
[359836659,1746364232724,-450.0,0.00019726,2]
[359836660,1746364232733,-490.0,0.00019726,2]
[359836661,1746364232742,-490.0,0.00019726,2]
[359836662,1746364232754,-450.0,0.00019726,2]
[359836663,1746364232764,-490.0,0.00019726,2]
[359836664,1746364232775,-450.0,0.00019726,2]
[359836665,1746364232784,-450.0,0.00019726,2]
[359836666,1746364232794,-490.0,0.00019726,2]
[359836667,1746364232804,-450.0,0.00019726,2]
[359836668,1746364232813,-450.0,0.00019726,2]
[359836669,1746364232822,-535.9037044,0.00019726,2]
[359836670,1746364232832,-528.73,0.00019726,2]
[359836671,1746364232841,-509.74,0.00019726,2]
[359836672,1746364232851,-490.0,0.00019726,2]
[359836673,1746364232860,-450.0,0.00019726,2]
[359836674,1746364232869,-490.0,0.00019726,2]
[359836675,1746364232879,-450.0,0.00019726,2]
[359836676,1746364232888,-450.0,0.00019726,2]
[359836677,1746364232897,-490.0,0.00019726,2]
[359836678,1746364232906,-450.0,0.00019726,2]
[359836679,1746364232915,-450.0,0.00019726,2]
[359836680,1746364232924,-490.0,0.00019726,2]
[359836681,1746364232934,-450.0,0.00019726,2]
[359836682,1746364232943,-450.0,0.00019726,2]
[359836683,1746364232952,-450.0,0.00019726,2]
[359836684,1746364232961,-490.0,0.00019726,2]
[359836685,1746364232970,-490.0,0.00019726,2]
[359836686,1746364232979,-450.0,0.00019726,2]
[359836687,1746364232988,-450.0,0.00019726,2]
[359836688,1746364232998,-450.0,0.00019726,2]
[359836689,1746364233007,-490.0,0.00019726,2]
[359836690,1746364233016,-490.0,0.00019726,2]
[359836691,1746364233026,-490.0,0.00019726,2]
[359836692,1746364233035,-450.0,0.00019726,2]
[359836693,1746364233044,-296.25656827,0.00019726,2]
[359836694,1746364233054,-450.0,0.00019726,2]
[359836695,1746364233063,-490.0,0.00019726,2]
[359836696,1746364233072,-450.0,0.00019726,2]
[359836697,1746364233081,-490.0,0.00019726,2]
[359836698,1746364233090,-490.0,0.00019726,2]
[359836699,1746364233100,-450.0,0.00019726,2]
[359836700,1746364233109,-490.0,0.00019726,2]
[359836701,1746364233118,-490.0,0.00019726,2]
[359836702,1746364233127,-450.0,0.00019726,2]
[359836703,1746364233136,-450.0,0.00019726,2]
[359836704,1746364233146,-450.0,0.00019726,2]
[359836705,1746364233154,-450.0,0.00019726,2]
[359836706,1746364233164,-490.0,0.00019726,2]
[359836707,1746364233174,-450.0,0.00019726,2]
[359836708,1746364233183,-511.98939701,0.00019726,2]
[359836709,1746364233194,-450.0,0.00019726,2]
[359836710,1746364233204,-450.0,0.00019726,2]
[359836711,1746364233213,-450.0,0.00019726,2]
[359836712,1746364233223,-450.0,0.00019726,2]
[359836713,1746364233232,-490.0,0.00019726,2]
[359836714,1746364233241,-450.0,0.00019726,2]
[359836715,1746364233250,-450.0,0.00019726,2]
[359836716,1746364233259,-450.0,0.00019726,2]
[359836717,1746364233268,-490.0,0.00019726,2]
[359836718,1746364233277,-450.0,0.00019726,2]
[359836719,1746364233286,-490.0,0.00019726,2]
[359836720,1746364233296,-450.0,0.00019726,2]
[359836721,1746364233305,-450.0,0.00019726,2]
[359836722,1746364233314,-490.0,0.00019726,2]
[359836723,1746364233324,-371.31884895,0.00019726,2]
[359836724,1746364233333,-450.0,0.00019726,2]
[359836725,1746364233342,-490.0,0.00019726,2]
[359836726,1746364233351,-450.0,0.00019726,2]
[359836727,1746364233361,-450.0,0.00019726,2]
[359836728,1746364233371,-450.0,0.00019726,2]
[359836729,1746364233380,-490.0,0.00019726,2]
[359836730,1746364233390,-490.0,0.00019726,2]
[359836731,1746364233400,-450.0,0.00019726,2]
[359836732,1746364233410,-490.0,0.00019726,2]
[359836733,1746364233419,-592.02138524,0.00019726,2]
[359836734,1746364233428,-450.0,0.00019726,2]
[359836735,1746364233648,-450.0,0.00019726,2]
[359836736,1746364233659,-1495.51,0.00019726,2]
[359836737,1746364233668,-450.0,0.00019726,2]
[359836738,1746364233678,-450.0,0.00019726,2]
[359836739,1746364233688,-450.0,0.00019726,2]
[359836740,1746364233699,-450.0,0.00019726,2]
[359836741,1746364233714,-490.0,0.00019726,2]
[359836742,1746364233723,-450.0,0.00019726,2]